[Event "Titled Tuesday Blitz November 15 Early 2022"]
[White "Mohamed Anees M"]
[Black "Wagner, Dennis"]
[WhiteFideId "35065815"]
[BlackFideId "24650684"]
[WhiteElo "2135"]
[BlackElo "2470"]
[Result "1-0"]
[Round "05"]
[TimeControl "180+1"]
[Date "2022.11.16"]
[WhiteClock "0:00:54"]
[BlackClock "0:00:01"]

1. d4 {[%clk 0:03:00]}  Nf6 {[%clk 0:02:59]} 2. c4 {[%clk 0:03:00]}  e6 {[%clk 0:02:58]} 3. Nf3 {[%clk 0:03:00]}  c5 {[%clk 0:02:56]} 4. d5 {[%clk 0:02:59]}  b5 {[%clk 0:02:57]} 5. dxe6 {[%clk 0:02:47]}  fxe6 {[%clk 0:02:57]} 6. cxb5 {[%clk 0:02:47]}  a6 {[%clk 0:02:56]} 7. bxa6 {[%clk 0:02:42]}  Bxa6 {[%clk 0:02:57]} 8. Nc3 {[%clk 0:02:40]}  d5 {[%clk 0:02:48]} 9. Bg5 {[%clk 0:02:35]}  Be7 {[%clk 0:02:43]} 10. g3 {[%clk 0:02:33]}  Nc6 {[%clk 0:02:31]} 11. Bh3 {[%clk 0:02:33]}  Qd6 {[%clk 0:02:09]} 12. Rc1 {[%clk 0:02:15]}  h6 {[%clk 0:02:04]} 13. Bxf6 {[%clk 0:02:13]}  Bxf6 {[%clk 0:02:05]} 14. Ne4 {[%clk 0:02:12]}  Qe7 {[%clk 0:01:38]} 15. Nxc5 {[%clk 0:02:06]}  Bxb2 {[%clk 0:01:35]} 16. Rc2 {[%clk 0:02:05]}  Ba3 {[%clk 0:01:16]} 17. Nxe6 {[%clk 0:01:59]}  Bb4+ {[%clk 0:01:16]} 18. Kf1 {[%clk 0:01:44]}  Bc4 {[%clk 0:01:11]} 19. Nfd4 {[%clk 0:01:30]}  Nxd4 {[%clk 0:00:37]} 20. Qxd4 {[%clk 0:01:31]}  Ra6 {[%clk 0:00:21]} 21. Nxg7+ {[%clk 0:01:27]}  Kf7 {[%clk 0:00:16]} 22. Nf5 {[%clk 0:01:25]}  Qf6 {[%clk 0:00:16]} 23. Rxc4 {[%clk 0:01:19]}  dxc4 {[%clk 0:00:12]} 24. Qxc4+ {[%clk 0:01:20]}  Re6 {[%clk 0:00:08]} 25. Nd4 {[%clk 0:01:13]}  Be7 {[%clk 0:00:03]} 26. Qxe6+ {[%clk 0:01:10]}  Qxe6 {[%clk 0:00:03]} 27. Bxe6+ {[%clk 0:01:10]}  Kf6 {[%clk 0:00:04]} 28. e3 {[%clk 0:01:07]}  Rb8 {[%clk 0:00:03]} 29. Kg2 {[%clk 0:01:06]}  Rb2 {[%clk 0:00:03]} 30. Bb3 {[%clk 0:01:06]}  Bc5 {[%clk 0:00:03]} 31. Rc1 {[%clk 0:01:05]}  Bb4 {[%clk 0:00:02]} 32. Rc2 {[%clk 0:01:01]}  Rb1 {[%clk 0:00:02]} 33. Rc6+ {[%clk 0:01:01]}  Kg5 {[%clk 0:00:02]} 34. h4+ {[%clk 0:00:58]}  Kh5 {[%clk 0:00:01]} 35. Bf7+ {[%clk 0:00:56]}  Kg4 {[%clk 0:00:01]} 36. f3# {[%clk 0:00:54]} 1-0


[Site "https://www.chess.com"]

[Event "Titled Tuesday Blitz November 15 Early 2022"]
[White "Moksh Amit Doshi"]
[Black "Zeydan, Salih"]
[WhiteFideId "25064967"]
[BlackFideId "6361722"]
[WhiteElo "2330"]
[BlackElo "1988"]
[Result "0-1"]
[Round "05"]
[TimeControl "180+1"]
[Date "2022.11.16"]
[WhiteClock "0:01:35"]
[BlackClock "0:01:48"]

1. d4 {[%clk 0:03:00]}  Nf6 {[%clk 0:02:57]} 2. c4 {[%clk 0:03:00]}  c5 {[%clk 0:02:53]} 3. d5 {[%clk 0:02:59]}  b5 {[%clk 0:02:51]} 4. cxb5 {[%clk 0:02:59]}  a6 {[%clk 0:02:51]} 5. bxa6 {[%clk 0:03:00]}  g6 {[%clk 0:02:51]} 6. Nc3 {[%clk 0:03:00]}  Bxa6 {[%clk 0:02:52]} 7. e4 {[%clk 0:03:00]}  Bxf1 {[%clk 0:02:53]} 8. Kxf1 {[%clk 0:03:00]}  d6 {[%clk 0:02:54]} 9. Nf3 {[%clk 0:03:00]}  Bg7 {[%clk 0:02:54]} 10. g3 {[%clk 0:03:00]}  O-O {[%clk 0:02:55]} 11. Kg2 {[%clk 0:03:01]}  Nbd7 {[%clk 0:02:52]} 12. a4 {[%clk 0:03:02]}  Qa5 {[%clk 0:02:52]} 13. Bd2 {[%clk 0:03:01]}  Rfb8 {[%clk 0:02:53]} 14. Qc2 {[%clk 0:02:50]}  Qb4 {[%clk 0:02:49]} 15. Rhb1 {[%clk 0:02:43]}  Qb3 {[%clk 0:02:46]} 16. Qxb3 {[%clk 0:02:22]}  Rxb3 {[%clk 0:02:44]} 17. Bg5 {[%clk 0:02:00]}  h6 {[%clk 0:02:39]} 18. Bf4 {[%clk 0:01:53]}  g5 {[%clk 0:02:20]} 19. Be3 {[%clk 0:01:50]}  Ng4 {[%clk 0:02:19]} 20. Nd2 {[%clk 0:01:49]}  Nxe3+ {[%clk 0:02:13]} 21. fxe3 {[%clk 0:01:50]}  Rxb2 {[%clk 0:02:09]} 22. Rxb2 {[%clk 0:01:48]}  Bxc3 {[%clk 0:02:07]} 23. Rb7 {[%clk 0:01:49]}  Bxa1 {[%clk 0:02:04]} 24. Rxd7 {[%clk 0:01:49]}  Kf8 {[%clk 0:02:02]} 25. Nc4 {[%clk 0:01:35]}  Rxa4 {[%clk 0:01:56]} 26. Nd2 {[%clk 0:01:36]}  Bc3 {[%clk 0:01:53]} 27. Nb1 {[%clk 0:01:35]}  Bb4 {[%clk 0:01:48]} 0-1


[Site "https://www.chess.com"]

[Event "Titled Tuesday Blitz November 15 Early 2022"]
[White "Nissinen, Niilo Man"]
[Black "Rangel, Daniel"]
[WhiteFideId "30950767"]
[BlackFideId "2124475"]
[WhiteElo "1896"]
[BlackElo "2225"]
[Result "0-1"]
[Round "05"]
[TimeControl "180+1"]
[Date "2022.11.16"]
[WhiteClock "0:00:01"]
[BlackClock "0:00:05"]

1. e4 {[%clk 0:03:00]}  c5 {[%clk 0:02:59]} 2. Nf3 {[%clk 0:03:01]}  d6 {[%clk 0:02:59]} 3. d4 {[%clk 0:03:01]}  cxd4 {[%clk 0:03:00]} 4. Nxd4 {[%clk 0:03:02]}  Nf6 {[%clk 0:03:00]} 5. Nc3 {[%clk 0:03:03]}  g6 {[%clk 0:02:59]} 6. Be3 {[%clk 0:02:59]}  Bg7 {[%clk 0:02:59]} 7. Be2 {[%clk 0:02:54]}  O-O {[%clk 0:02:57]} 8. O-O {[%clk 0:02:49]}  Nc6 {[%clk 0:02:56]} 9. h3 {[%clk 0:02:46]}  Bd7 {[%clk 0:02:54]} 10. Qd2 {[%clk 0:02:38]}  Nxd4 {[%clk 0:02:54]} 11. Bxd4 {[%clk 0:02:37]}  Bc6 {[%clk 0:02:55]} 12. Qe3 {[%clk 0:02:32]}  Qa5 {[%clk 0:02:24]} 13. f4 {[%clk 0:02:09]}  e5 {[%clk 0:02:22]} 14. fxe5 {[%clk 0:01:59]}  dxe5 {[%clk 0:02:21]} 15. Bc5 {[%clk 0:01:55]}  Rfe8 {[%clk 0:02:19]} 16. Rad1 {[%clk 0:01:48]}  b5 {[%clk 0:01:38]} 17. b4 {[%clk 0:01:38]}  Qa6 {[%clk 0:01:35]} 18. a4 {[%clk 0:01:38]}  Qb7 {[%clk 0:01:34]} 19. axb5 {[%clk 0:01:31]}  Bxe4 {[%clk 0:01:30]} 20. Rxf6 {[%clk 0:01:27]}  Bxf6 {[%clk 0:01:20]} 21. Nxe4 {[%clk 0:01:26]}  Be7 {[%clk 0:01:17]} 22. Nd6 {[%clk 0:01:04]}  Bxd6 {[%clk 0:01:15]} 23. Rxd6 {[%clk 0:01:03]}  Qc7 {[%clk 0:00:56]} 24. Rc6 {[%clk 0:00:54]}  Qd7 {[%clk 0:00:53]} 25. Bg4 {[%clk 0:00:49]}  Qb7 {[%clk 0:00:49]} 26. Qh6 {[%clk 0:00:36]}  Qxb5 {[%clk 0:00:41]} 27. Rc7 {[%clk 0:00:34]}  Qa4 {[%clk 0:00:28]} 28. Be7 {[%clk 0:00:24]}  Qa1+ {[%clk 0:00:23]} 29. Kh2 {[%clk 0:00:23]}  e4 {[%clk 0:00:23]} 30. Qf4 {[%clk 0:00:20]}  Qd4 {[%clk 0:00:14]} 31. Bf6 {[%clk 0:00:18]}  Qxb4 {[%clk 0:00:14]} 32. Be2 {[%clk 0:00:04]}  Qb8 {[%clk 0:00:09]} 33. g3 {[%clk 0:00:01]}  Re6 {[%clk 0:00:08]} 34. Be5 {[%clk 0:00:01]}  Qe8 {[%clk 0:00:06]} 35. Rb7 {[%clk 0:00:01]}  Rxe5 {[%clk 0:00:05]} 0-1


[Site "https://www.chess.com"]

[Event "Titled Tuesday Blitz November 15 Early 2022"]
[White "Novikova, Galina"]
[Black "Flis, Pawel"]
[WhiteFideId "4157095"]
[BlackFideId "1112864"]
[WhiteElo "1973"]
[BlackElo "1817"]
[Result "1-0"]
[Round "05"]
[TimeControl "180+1"]
[Date "2022.11.16"]
[WhiteClock "0:01:13"]
[BlackClock "0:00:29"]

1. e4 {[%clk 0:02:57]}  c5 {[%clk 0:03:00]} 2. Nf3 {[%clk 0:02:56]}  d6 {[%clk 0:03:00]} 3. d4 {[%clk 0:02:56]}  Nf6 {[%clk 0:03:01]} 4. Nc3 {[%clk 0:02:56]}  cxd4 {[%clk 0:03:01]} 5. Nxd4 {[%clk 0:02:56]}  a6 {[%clk 0:03:01]} 6. h3 {[%clk 0:02:56]}  e6 {[%clk 0:02:58]} 7. g4 {[%clk 0:02:57]}  Nfd7 {[%clk 0:02:59]} 8. Bg2 {[%clk 0:02:57]}  b5 {[%clk 0:02:55]} 9. e5 {[%clk 0:02:45]}  d5 {[%clk 0:02:55]} 10. Bf4 {[%clk 0:02:18]}  Qc7 {[%clk 0:02:34]} 11. Qf3 {[%clk 0:02:05]}  b4 {[%clk 0:02:30]} 12. Nxd5 {[%clk 0:01:49]}  exd5 {[%clk 0:02:23]} 13. e6 {[%clk 0:01:50]}  Qb7 {[%clk 0:01:24]} 14. exd7+ {[%clk 0:01:31]}  Bxd7 {[%clk 0:01:22]} 15. O-O {[%clk 0:01:32]}  Be7 {[%clk 0:01:12]} 16. Rfe1 {[%clk 0:01:32]}  Kf8 {[%clk 0:00:59]} 17. Qxd5 {[%clk 0:01:27]}  Bc6 {[%clk 0:00:50]} 18. Nxc6 {[%clk 0:01:25]}  Qxc6 {[%clk 0:00:50]} 19. Qxc6 {[%clk 0:01:26]}  Nxc6 {[%clk 0:00:50]} 20. Bxc6 {[%clk 0:01:26]}  Rc8 {[%clk 0:00:42]} 21. Be4 {[%clk 0:01:23]}  f6 {[%clk 0:00:41]} 22. Rad1 {[%clk 0:01:16]}  Kf7 {[%clk 0:00:35]} 23. Bd5+ {[%clk 0:01:15]}  Kf8 {[%clk 0:00:32]} 24. Bb3 {[%clk 0:01:16]}  Rd8 {[%clk 0:00:28]} 25. Rxd8+ {[%clk 0:01:13]}  Bxd8 {[%clk 0:00:29]} 26. Bd6+ {[%clk 0:01:13]} 1-0


[Site "https://www.chess.com"]

[Event "Titled Tuesday Blitz November 15 Early 2022"]
[White "Orlov, Georgi"]
[Black "Fernandez Guillen, Ernesto J."]
[WhiteFideId "2011271"]
[BlackFideId "3512428"]
[WhiteElo "2544"]
[BlackElo "2450"]
[Result "0-1"]
[Round "05"]
[TimeControl "180+1"]
[Date "2022.11.16"]
[WhiteClock "0:00:15"]
[BlackClock "0:00:19"]

1. d4 {[%clk 0:03:00]}  Nf6 {[%clk 0:02:58]} 2. Nf3 {[%clk 0:03:01]}  e6 {[%clk 0:02:54]} 3. c4 {[%clk 0:03:01]}  b6 {[%clk 0:02:55]} 4. g3 {[%clk 0:03:00]}  Bb7 {[%clk 0:02:55]} 5. Bg2 {[%clk 0:03:00]}  d5 {[%clk 0:02:55]} 6. cxd5 {[%clk 0:02:56]}  exd5 {[%clk 0:02:56]} 7. O-O {[%clk 0:02:55]}  Be7 {[%clk 0:02:56]} 8. Bf4 {[%clk 0:02:55]}  O-O {[%clk 0:02:57]} 9. Nc3 {[%clk 0:02:54]}  Re8 {[%clk 0:02:57]} 10. Rc1 {[%clk 0:02:54]}  Na6 {[%clk 0:02:56]} 11. Ne5 {[%clk 0:02:50]}  Bf8 {[%clk 0:02:55]} 12. Qa4 {[%clk 0:02:47]}  c5 {[%clk 0:02:48]} 13. Rfd1 {[%clk 0:02:37]}  h6 {[%clk 0:02:41]} 14. Bh3 {[%clk 0:02:22]}  cxd4 {[%clk 0:01:59]} 15. Qxd4 {[%clk 0:01:33]}  g5 {[%clk 0:01:57]} 16. Nb5 {[%clk 0:01:08]}  Bc5 {[%clk 0:01:37]} 17. Qd2 {[%clk 0:01:07]}  gxf4 {[%clk 0:01:34]} 18. Qxf4 {[%clk 0:01:07]}  Qe7 {[%clk 0:01:15]} 19. Nd3 {[%clk 0:00:49]}  Kg7 {[%clk 0:01:06]} 20. b4 {[%clk 0:00:47]}  Nxb4 {[%clk 0:01:06]} 21. Nxc5 {[%clk 0:00:20]}  bxc5 {[%clk 0:01:06]} 22. Nc7 {[%clk 0:00:20]}  d4 {[%clk 0:00:53]} 23. Nxe8+ {[%clk 0:00:19]}  Rxe8 {[%clk 0:00:52]} 24. a3 {[%clk 0:00:19]}  Nbd5 {[%clk 0:00:52]} 25. Qf5 {[%clk 0:00:17]}  Nc3 {[%clk 0:00:48]} 26. Re1 {[%clk 0:00:17]}  Nxe2+ {[%clk 0:00:45]} 27. Rxe2 {[%clk 0:00:17]}  Qxe2 {[%clk 0:00:44]} 28. Rxc5 {[%clk 0:00:17]}  Qe4 {[%clk 0:00:31]} 29. Rc1 {[%clk 0:00:16]}  Qxf5 {[%clk 0:00:31]} 30. Bxf5 {[%clk 0:00:16]}  Be4 {[%clk 0:00:31]} 31. Bxe4 {[%clk 0:00:16]}  Rxe4 {[%clk 0:00:30]} 32. Rd1 {[%clk 0:00:16]}  a5 {[%clk 0:00:21]} 33. f3 {[%clk 0:00:16]}  Re3 {[%clk 0:00:21]} 34. Rxd4 {[%clk 0:00:17]}  Rxa3 {[%clk 0:00:21]} 35. Kg2 {[%clk 0:00:16]}  Ra2+ {[%clk 0:00:21]} 36. Kh3 {[%clk 0:00:15]}  a4 {[%clk 0:00:21]} 37. g4 {[%clk 0:00:16]}  a3 {[%clk 0:00:21]} 38. Kg3 {[%clk 0:00:16]}  Ra1 {[%clk 0:00:20]} 39. Ra4 {[%clk 0:00:16]}  a2 {[%clk 0:00:19]} 40. Kg2 {[%clk 0:00:16]}  Nd5 {[%clk 0:00:19]} 41. h4 {[%clk 0:00:16]}  Nc3 {[%clk 0:00:19]} 42. Ra3 {[%clk 0:00:15]}  Rc1 {[%clk 0:00:19]} 0-1


[Site "https://www.chess.com"]

[Event "Titled Tuesday Blitz November 15 Early 2022"]
[White "Osinovsky, Stepan"]
[Black "Xiong, Jeffery"]
[WhiteFideId "4157354"]
[BlackFideId "2047640"]
[WhiteElo "2222"]
[BlackElo "2725"]
[Result "0-1"]
[Round "05"]
[TimeControl "180+1"]
[Date "2022.11.16"]
[WhiteClock "0:00:03"]
[BlackClock "0:00:22"]

1. Nf3 {[%clk 0:02:56]}  c5 {[%clk 0:02:56]} 2. g3 {[%clk 0:02:57]}  Nc6 {[%clk 0:02:56]} 3. Bg2 {[%clk 0:02:58]}  g6 {[%clk 0:02:56]} 4. O-O {[%clk 0:02:58]}  Bg7 {[%clk 0:02:57]} 5. d3 {[%clk 0:02:56]}  e5 {[%clk 0:02:55]} 6. e4 {[%clk 0:02:53]}  Nge7 {[%clk 0:02:55]} 7. Re1 {[%clk 0:02:52]}  d6 {[%clk 0:02:55]} 8. Nc3 {[%clk 0:02:51]}  O-O {[%clk 0:02:56]} 9. a4 {[%clk 0:02:42]}  h6 {[%clk 0:02:55]} 10. Nd5 {[%clk 0:02:34]}  Nxd5 {[%clk 0:02:54]} 11. exd5 {[%clk 0:02:34]}  Ne7 {[%clk 0:02:55]} 12. Nd2 {[%clk 0:02:28]}  b6 {[%clk 0:02:49]} 13. c3 {[%clk 0:01:58]}  Kh7 {[%clk 0:02:42]} 14. Nc4 {[%clk 0:01:40]}  Bb7 {[%clk 0:02:40]} 15. f4 {[%clk 0:01:26]}  Bxd5 {[%clk 0:02:32]} 16. Bxd5 {[%clk 0:01:01]}  Nxd5 {[%clk 0:02:33]} 17. Qf3 {[%clk 0:01:01]}  Ne7 {[%clk 0:02:23]} 18. fxe5 {[%clk 0:00:59]}  dxe5 {[%clk 0:02:24]} 19. Nxe5 {[%clk 0:00:59]}  Nf5 {[%clk 0:02:19]} 20. a5 {[%clk 0:00:50]}  b5 {[%clk 0:01:42]} 21. a6 {[%clk 0:00:47]}  Nd4 {[%clk 0:01:03]} 22. cxd4 {[%clk 0:00:37]}  Qxd4+ {[%clk 0:01:04]} 23. Kg2 {[%clk 0:00:20]}  Bxe5 {[%clk 0:01:04]} 24. Re4 {[%clk 0:00:19]}  Qd6 {[%clk 0:00:57]} 25. Bf4 {[%clk 0:00:17]}  Bxf4 {[%clk 0:00:52]} 26. Rxf4 {[%clk 0:00:18]}  Kg8 {[%clk 0:00:35]} 27. Rf6 {[%clk 0:00:17]}  Qd4 {[%clk 0:00:34]} 28. Rf1 {[%clk 0:00:16]}  Qxb2+ {[%clk 0:00:33]} 29. Rf2 {[%clk 0:00:16]}  Qb3 {[%clk 0:00:34]} 30. h4 {[%clk 0:00:13]}  Rad8 {[%clk 0:00:33]} 31. h5 {[%clk 0:00:07]}  Qxd3 {[%clk 0:00:23]} 32. Qxd3 {[%clk 0:00:03]}  Rxd3 {[%clk 0:00:24]} 33. hxg6 {[%clk 0:00:04]}  Rd7 {[%clk 0:00:25]} 34. g4 {[%clk 0:00:03]}  c4 {[%clk 0:00:22]} 0-1


[Site "https://www.chess.com"]

[Event "Titled Tuesday Blitz November 15 Early 2022"]
[White "Pajeken, Jakob Leon"]
[Black "Corrales Jimenez, Fidel"]
[WhiteFideId "12942839"]
[BlackFideId "3506690"]
[WhiteElo "2429"]
[BlackElo "2541"]
[Result "0-1"]
[Round "05"]
[TimeControl "180+1"]
[Date "2022.11.16"]
[WhiteClock "0:00:12"]
[BlackClock "0:00:07"]

1. d4 {[%clk 0:02:58]}  Nf6 {[%clk 0:02:59]} 2. Nf3 {[%clk 0:02:58]}  g6 {[%clk 0:02:58]} 3. g3 {[%clk 0:02:57]}  Bg7 {[%clk 0:02:58]} 4. Bg2 {[%clk 0:02:58]}  O-O {[%clk 0:02:58]} 5. O-O {[%clk 0:02:58]}  d5 {[%clk 0:02:55]} 6. c4 {[%clk 0:02:57]}  Nc6 {[%clk 0:02:56]} 7. cxd5 {[%clk 0:02:56]}  Nxd5 {[%clk 0:02:57]} 8. e4 {[%clk 0:02:56]}  Nb6 {[%clk 0:02:56]} 9. d5 {[%clk 0:02:57]}  Nb8 {[%clk 0:02:53]} 10. Nc3 {[%clk 0:02:51]}  c6 {[%clk 0:02:53]} 11. Nd4 {[%clk 0:02:50]}  e6 {[%clk 0:02:13]} 12. a4 {[%clk 0:02:45]}  exd5 {[%clk 0:02:07]} 13. a5 {[%clk 0:02:44]}  dxe4 {[%clk 0:02:04]} 14. axb6 {[%clk 0:02:42]}  Qxd4 {[%clk 0:02:03]} 15. Be3 {[%clk 0:02:17]}  Qxd1 {[%clk 0:01:30]} 16. Rfxd1 {[%clk 0:02:18]}  Bg4 {[%clk 0:00:53]} 17. Rxa7 {[%clk 0:02:09]}  Nd7 {[%clk 0:00:19]} 18. Rda1 {[%clk 0:02:02]}  Rab8 {[%clk 0:00:17]} 19. Bf4 {[%clk 0:01:55]}  Be5 {[%clk 0:00:16]} 20. Bxe5 {[%clk 0:01:54]}  Nxe5 {[%clk 0:00:17]} 21. Nxe4 {[%clk 0:01:55]}  Nd7 {[%clk 0:00:11]} 22. h3 {[%clk 0:00:41]}  Be6 {[%clk 0:00:10]} 23. Nd6 {[%clk 0:00:30]}  Nxb6 {[%clk 0:00:10]} 24. Rxb7 {[%clk 0:00:28]}  Nc4 {[%clk 0:00:08]} 25. Rxb8 {[%clk 0:00:26]}  Rxb8 {[%clk 0:00:07]} 26. Nxc4 {[%clk 0:00:24]}  Bxc4 {[%clk 0:00:08]} 27. Rc1 {[%clk 0:00:22]}  Bb5 {[%clk 0:00:05]} 28. Rc3 {[%clk 0:00:21]}  Rb6 {[%clk 0:00:04]} 29. Bf1 {[%clk 0:00:21]}  Kf8 {[%clk 0:00:05]} 30. Bxb5 {[%clk 0:00:20]}  cxb5 {[%clk 0:00:05]} 31. f4 {[%clk 0:00:20]}  Ke7 {[%clk 0:00:06]} 32. Kf2 {[%clk 0:00:21]}  Kd6 {[%clk 0:00:06]} 33. Ke3 {[%clk 0:00:21]}  Ra6 {[%clk 0:00:07]} 34. Rc8 {[%clk 0:00:21]}  Ra1 {[%clk 0:00:07]} 35. Rb8 {[%clk 0:00:21]}  Kc6 {[%clk 0:00:06]} 36. Rf8 {[%clk 0:00:21]}  Re1+ {[%clk 0:00:06]} 37. Kf3 {[%clk 0:00:19]}  Re7 {[%clk 0:00:06]} 38. f5 {[%clk 0:00:18]}  Kc5 {[%clk 0:00:06]} 39. f6 {[%clk 0:00:18]}  Rd7 {[%clk 0:00:05]} 40. Kf4 {[%clk 0:00:18]}  h6 {[%clk 0:00:05]} 41. h4 {[%clk 0:00:18]}  Kb4 {[%clk 0:00:05]} 42. Rb8 {[%clk 0:00:16]}  Rd6 {[%clk 0:00:04]} 43. Ke5 {[%clk 0:00:14]}  Re6+ {[%clk 0:00:04]} 44. Kd5 {[%clk 0:00:13]}  Rxf6 {[%clk 0:00:05]} 45. Rb7 {[%clk 0:00:13]}  Rf5+ {[%clk 0:00:06]} 46. Ke4 {[%clk 0:00:13]}  h5 {[%clk 0:00:07]} 47. Rb8 {[%clk 0:00:12]}  Kb3 {[%clk 0:00:07]} 0-1


[Site "https://www.chess.com"]

[Event "Titled Tuesday Blitz November 15 Early 2022"]
[White "Papasimakopoulos, Alexandros"]
[Black "Petrosyan, Manuel"]
[WhiteFideId "4244125"]
[BlackFideId "13300857"]
[WhiteElo "2365"]
[BlackElo "2561"]
[Result "1-0"]
[Round "05"]
[TimeControl "180+1"]
[Date "2022.11.15"]
[WhiteClock "0:00:57"]
[BlackClock "0:00:04"]

1. d4 {[%clk 0:02:59]}  Nf6 {[%clk 0:02:59]} 2. c4 {[%clk 0:03:00]}  g6 {[%clk 0:02:59]} 3. Nc3 {[%clk 0:03:00]}  Bg7 {[%clk 0:02:59]} 4. Bg5 {[%clk 0:03:01]}  d6 {[%clk 0:02:55]} 5. e3 {[%clk 0:03:01]}  h6 {[%clk 0:02:51]} 6. Bh4 {[%clk 0:03:00]}  O-O {[%clk 0:02:48]} 7. Be2 {[%clk 0:03:00]}  Nc6 {[%clk 0:02:31]} 8. Nf3 {[%clk 0:02:54]}  Bf5 {[%clk 0:02:31]} 9. Nd2 {[%clk 0:02:52]}  e5 {[%clk 0:02:22]} 10. d5 {[%clk 0:02:52]}  Ne7 {[%clk 0:02:15]} 11. e4 {[%clk 0:02:45]}  Bd7 {[%clk 0:02:14]} 12. O-O {[%clk 0:02:45]}  Nh7 {[%clk 0:02:05]} 13. f3 {[%clk 0:02:37]}  a5 {[%clk 0:01:55]} 14. Bf2 {[%clk 0:02:34]}  b6 {[%clk 0:01:55]} 15. a3 {[%clk 0:02:29]}  a4 {[%clk 0:01:52]} 16. b4 {[%clk 0:02:30]}  axb3 {[%clk 0:01:52]} 17. Nxb3 {[%clk 0:02:25]}  f5 {[%clk 0:01:45]} 18. a4 {[%clk 0:02:24]}  f4 {[%clk 0:01:32]} 19. a5 {[%clk 0:02:24]}  bxa5 {[%clk 0:01:33]} 20. Nxa5 {[%clk 0:02:08]}  g5 {[%clk 0:01:08]} 21. h3 {[%clk 0:02:08]}  Ng6 {[%clk 0:01:06]} 22. c5 {[%clk 0:02:08]}  Qf6 {[%clk 0:00:52]} 23. Nb5 {[%clk 0:02:01]}  Bxb5 {[%clk 0:00:50]} 24. Bxb5 {[%clk 0:02:02]}  h5 {[%clk 0:00:47]} 25. Bd7 {[%clk 0:02:02]}  Kh8 {[%clk 0:00:27]} 26. cxd6 {[%clk 0:01:54]}  cxd6 {[%clk 0:00:27]} 27. Nc6 {[%clk 0:01:41]}  Rxa1 {[%clk 0:00:26]} 28. Qxa1 {[%clk 0:01:40]}  g4 {[%clk 0:00:20]} 29. hxg4 {[%clk 0:01:35]}  Nh4 {[%clk 0:00:17]} 30. Qe1 {[%clk 0:01:30]}  Ng6 {[%clk 0:00:12]} 31. gxh5 {[%clk 0:01:30]}  Ne7 {[%clk 0:00:09]} 32. Bh4 {[%clk 0:01:29]}  Ng5 {[%clk 0:00:09]} 33. Bg4 {[%clk 0:01:17]}  Bh6 {[%clk 0:00:09]} 34. Qf2 {[%clk 0:01:14]}  Rg8 {[%clk 0:00:09]} 35. Ra1 {[%clk 0:01:13]}  Qf8 {[%clk 0:00:04]} 36. Ra7 {[%clk 0:00:57]} 1-0


[Site "https://www.chess.com"]

[Event "Titled Tuesday Blitz November 15 Early 2022"]
[White "Parligras, Mircea-Emilian"]
[Black "Sarana, Alexey"]
[WhiteFideId "1204297"]
[BlackFideId "24133795"]
[WhiteElo "2507"]
[BlackElo "2708"]
[Result "0-1"]
[Round "05"]
[TimeControl "180+1"]
[Date "2022.11.15"]
[WhiteClock "0:00:02"]
[BlackClock "0:00:14"]

1. d4 {[%clk 0:03:00]}  Nf6 {[%clk 0:02:59]} 2. c4 {[%clk 0:03:00]}  e6 {[%clk 0:03:00]} 3. Nc3 {[%clk 0:03:01]}  d5 {[%clk 0:02:58]} 4. cxd5 {[%clk 0:03:00]}  exd5 {[%clk 0:02:59]} 5. Bg5 {[%clk 0:03:00]}  c6 {[%clk 0:03:00]} 6. e3 {[%clk 0:03:00]}  Bf5 {[%clk 0:03:00]} 7. Qf3 {[%clk 0:02:59]}  Bg6 {[%clk 0:03:01]} 8. Bxf6 {[%clk 0:02:59]}  Qxf6 {[%clk 0:03:02]} 9. Qxf6 {[%clk 0:03:00]}  gxf6 {[%clk 0:03:03]} 10. Nf3 {[%clk 0:03:00]}  Nd7 {[%clk 0:03:01]} 11. Nh4 {[%clk 0:03:00]}  Be7 {[%clk 0:03:02]} 12. Be2 {[%clk 0:02:59]}  f5 {[%clk 0:02:35]} 13. g3 {[%clk 0:02:55]}  Bxh4 {[%clk 0:02:32]} 14. gxh4 {[%clk 0:02:55]}  Nf6 {[%clk 0:02:30]} 15. Bf3 {[%clk 0:02:36]}  Ke7 {[%clk 0:02:22]} 16. Ne2 {[%clk 0:02:36]}  Bh5 {[%clk 0:02:22]} 17. Bxh5 {[%clk 0:02:30]}  Nxh5 {[%clk 0:02:23]} 18. Rg1 {[%clk 0:02:28]}  Rhg8 {[%clk 0:02:22]} 19. Rg5 {[%clk 0:02:24]}  Ng7 {[%clk 0:02:13]} 20. Kd2 {[%clk 0:02:09]}  h6 {[%clk 0:02:12]} 21. Rg3 {[%clk 0:02:08]}  Nh5 {[%clk 0:02:02]} 22. Rxg8 {[%clk 0:02:02]}  Rxg8 {[%clk 0:02:01]} 23. Ng3 {[%clk 0:01:48]}  Nf6 {[%clk 0:01:47]} 24. Nxf5+ {[%clk 0:01:46]}  Ke6 {[%clk 0:01:47]} 25. Ng3 {[%clk 0:01:41]}  Ng4 {[%clk 0:01:38]} 26. Ke2 {[%clk 0:01:31]}  Nxh2 {[%clk 0:01:38]} 27. Rg1 {[%clk 0:01:30]}  Rg6 {[%clk 0:01:33]} 28. Rg2 {[%clk 0:00:57]}  Ng4 {[%clk 0:01:33]} 29. Nh5 {[%clk 0:00:57]}  Ke7 {[%clk 0:01:22]} 30. Nf4 {[%clk 0:00:50]}  Rg8 {[%clk 0:01:22]} 31. f3 {[%clk 0:00:46]}  Nf6 {[%clk 0:01:22]} 32. Rxg8 {[%clk 0:00:46]}  Nxg8 {[%clk 0:01:23]} 33. e4 {[%clk 0:00:45]}  Nf6 {[%clk 0:01:20]} 34. e5 {[%clk 0:00:44]}  Nd7 {[%clk 0:01:21]} 35. Nh5 {[%clk 0:00:41]}  Nf8 {[%clk 0:01:18]} 36. Nf4 {[%clk 0:00:38]}  Ne6 {[%clk 0:01:00]} 37. Ke3 {[%clk 0:00:29]}  Ng7 {[%clk 0:00:55]} 38. Ng2 {[%clk 0:00:19]}  Ke6 {[%clk 0:00:53]} 39. Nf4+ {[%clk 0:00:17]}  Ke7 {[%clk 0:00:22]} 40. Ng2 {[%clk 0:00:17]}  a5 {[%clk 0:00:22]} 41. Kf4 {[%clk 0:00:11]}  Ne6+ {[%clk 0:00:22]} 42. Ke3 {[%clk 0:00:11]}  a4 {[%clk 0:00:23]} 43. Kd3 {[%clk 0:00:10]}  Ng7 {[%clk 0:00:21]} 44. Ne3 {[%clk 0:00:07]}  Ke6 {[%clk 0:00:19]} 45. Ng4 {[%clk 0:00:03]}  h5 {[%clk 0:00:18]} 46. Nf6 {[%clk 0:00:03]}  Kf5 {[%clk 0:00:18]} 47. Ke3 {[%clk 0:00:03]}  Kg6 {[%clk 0:00:18]} 48. b3 {[%clk 0:00:02]}  Nf5+ {[%clk 0:00:15]} 49. Kd3 {[%clk 0:00:02]}  axb3 {[%clk 0:00:14]} 50. axb3 {[%clk 0:00:02]}  Nxh4 {[%clk 0:00:15]} 51. b4 {[%clk 0:00:01]}  Nxf3 {[%clk 0:00:15]} 52. Ke3 {[%clk 0:00:01]}  Ng5 {[%clk 0:00:15]} 53. Kf4 {[%clk 0:00:01]}  Ne6+ {[%clk 0:00:15]} 54. Ke3 {[%clk 0:00:01]}  h4 {[%clk 0:00:15]} 55. b5 {[%clk 0:00:02]}  h3 {[%clk 0:00:14]} 56. bxc6 {[%clk 0:00:02]}  bxc6 {[%clk 0:00:14]} 57. Ng4 {[%clk 0:00:02]}  Kg5 {[%clk 0:00:14]} 58. Nh2 {[%clk 0:00:02]}  Kh4 {[%clk 0:00:14]} 59. Nf3+ {[%clk 0:00:02]}  Kg3 {[%clk 0:00:14]} 0-1


[Site "https://www.chess.com"]